[Event "Czech Open-E Teams 2022"]
[Site "Pardubice"]
[Date "2022.07.15"]
[Round "2.31"]
[White "Rodshtein, Tereza"]
[Black "Kastner, Jan"]
[Result "1/2-1/2"]
[ECO "B15"]
[WhiteElo "2169"]
[BlackElo "1993"]
[Annotator "ChessBase"]
[PlyCount "76"]
[EventDate "2022.07.14"]
[EventType "team-tourn"]
[EventCountry "CZE"]
[SourceTitle "playchess.com"]
[Source "ChessBase"]
[SourceQuality "1"]
[TimeControl "5400+30"]

1. e4 {[%emt 0:00:06]} c6 {[%emt 0:01:00]} 2. d4 {[%emt 0:00:05]} d5 {[%emt 0:00:16]} 3. Nd2 {[%emt 0:00:08]} dxe4 {[%emt 0:00:04]} 4. Nxe4 {[%emt 0:00:06]} Nf6 {[%emt 0:02:59]} 5. Nxf6+ {[%emt 0:00:04]} exf6 {[%emt 0:03:25]} 6. Nf3 {[%emt 0:00:09]} Bd6 {[%emt 0:00:56]} 7. Be2 {[%emt 0:00:22]} Bf5 {[%emt 0:06:59]} 8. O-O {[%emt 0:00:06]} O-O 9. Be3 {[%emt 0:17:34]} Re8 {[%emt 0:00:00]} 10. c4 {[%emt 0:03:39]} Nd7 {[%emt 0:00:00]} 11. Qb3 {[%emt 0:08:38]} Qc8 {[%emt 0:00:00]} 12. c5 {[%emt 0:04:41]} Bb8 {[%emt 0:00:00]} 13. Bc4 {[%emt 0:03:42]} Be6 {[%emt 0:01:18]} 14. Bxe6 {[%emt 0:00:54]} Rxe6 {[%emt 0:00:01]} 15. Rfd1 {[%emt 0:02:22]} b6 {[%emt 0:03:31]} 16. Rac1 {[%emt 0:20:38]} bxc5 {[%emt 0:01:09]} 17. dxc5 {[%emt 0:00:15]} Be5 {[%emt 0:01:18]} 18. Qd3 {[%emt 0:01:01]} Nf8 {[%emt 0:06:38]} 19. Nxe5 {[%emt 0:03:21]} fxe5 {[%emt 0:00:26]} 20. Qe4 {[%emt 0:00:47]} Qc7 {[%emt 0:02:07]} 21. Rd2 {[%emt 0:00:53]} Rd8 {[%emt 0:04:22]} 22. Rcd1 {[%emt 0:00:11]} Rxd2 {[%emt 0:00:08]} 23. Rxd2 {[%emt 0:00:02]} h6 {[%emt 0:11:52]} 24. g3 {[%emt 0:00:31]} Nd7 {[%emt 0:05:41]} 25. Qd3 {[%emt 0:00:38]} Nf6 {[%emt 0:00:07]} 26. Qd8+ {[%emt 0:02:05]} Qxd8 {[%emt 0:01:16]} 27. Rxd8+ {[%emt 0:00:01]} Re8 {[%emt 0:00:43]} 28. Rd6 {[%emt 0:00:08]} Re6 {[%emt 0:05:02]} 29. Rd3 {[%emt 0:00:32]} Nd5 {[%emt 0:04:15]} 30. Rb3 {[%emt 0:00:19]} Kf8 {[%emt 0:02:04]} 31. Kf1 {[%emt 0:01:27]} f5 {[%emt 0:01:22]} 32. Ke2 {[%emt 0:00:58]} g5 {[%emt 0:02:14]} 33. Bd2 {[%emt 0:05:04]} Re7 {[%emt 0:06:01]} 34. h4 {[%emt 0:01:42]} f4 {[%emt 0:00:32]} 35. hxg5 {[%emt 0:00:10]} hxg5 {[%emt 0:00:02]} 36. gxf4 {[%emt 0:04:05]} gxf4 {[%emt 0:03:03]} 37. f3 {[%emt 0:02:27]} Kf7 {[%emt 0:00:38]} 38. Be1 {[%emt 0:01:05]} Ke6 {[%emt 0:01:55]} 1/2-1/2

[Event "Czech Open-E Teams 2022"]
[Site "Pardubice"]
[Date "2022.07.15"]
[Round "2.32"]
[White "Zima, Tomas"]
[Black "Sykora, Marek"]
[Result "0-1"]
[ECO "D02"]
[WhiteElo "1861"]
[BlackElo "2240"]
[Annotator "ChessBase"]
[PlyCount "94"]
[EventDate "2022.07.14"]
[EventType "team-tourn"]
[EventCountry "CZE"]
[SourceTitle "playchess.com"]
[Source "ChessBase"]
[SourceQuality "1"]
[TimeControl "5400+30"]

1. d4 {[%emt 0:00:03]} d5 {[%emt 0:00:10]} 2. Nf3 {[%emt 0:01:22]} Nf6 {[%emt 0:00:09]} 3. Bf4 {[%emt 0:02:03]} e6 {[%emt 0:01:44]} 4. Nbd2 {[%emt 0:01:47]} c5 {[%emt 0:02:07]} 5. e3 {[%emt 0:02:21]} Nc6 {[%emt 0:00:46]} 6. Bd3 {[%emt 0:05:46]} Qb6 {[%emt 0:03:54]} 7. dxc5 {[%emt 0:05:04]} Bxc5 {[%emt 0:02:02]} 8. Nb3 {[%emt 0:00:23]} Be7 {[%emt 0:00:09]} 9. O-O {[%emt 0:00:49]} O-O {[%emt 0:01:19]} 10. c3 {[%emt 0:00:05]} h6 {[%emt 0:04:26]} 11. Qe2 {[%emt 0:00:16]} Nh5 {[%emt 0:02:27]} 12. Bc2 {[%emt 0:03:44]} Nxf4 {[%emt 0:02:23]} 13. exf4 {[%emt 0:00:09]} Bf6 {[%emt 0:02:51]} 14. h4 {[%emt 0:06:02]} Qc7 {[%emt 0:02:26]} 15. Qd3 {[%emt 0:01:27]} Rd8 {[%emt 0:06:50]} 16. g3 {[%emt 0:02:08]} b6 {[%emt 0:05:10]} 17. Rfe1 {[%emt 0:02:04]} Bb7 {[%emt 0:22:27]} 18. Qh7+ {[%emt 0:01:15]} Kf8 {[%emt 0:00:08]} 19. Nh2 {[%emt 0:00:11]} d4 {[%emt 0:12:31]} 20. Ng4 {[%emt 0:00:21]} Ke7 {[%emt 0:01:32]} 21. Nxf6 {[%emt 0:00:22]} Kxf6 {[%emt 0:01:03]} 22. Qd3 {[%emt 0:06:11]} Rac8 {[%emt 0:03:26]} 23. Rac1 {[%emt 0:01:13]} Qd6 {[%emt 0:01:54]} 24. Nd2 {[%emt 0:01:29]} Ke7 {[%emt 0:02:11]} 25. Ne4 {[%emt 0:01:58]} Qd5 {[%emt 0:05:57]} 26. c4 {[%emt 0:00:34]} Qa5 {[%emt 0:00:07]} 27. a3 {[%emt 0:00:36]} Kf8 {[%emt 0:00:32]} 28. g4 {[%emt 0:02:50]} b5 {[%emt 0:01:31]} 29. cxb5 {[%emt 0:01:10]} Ne7 {[%emt 0:00:09]} 30. b4 {[%emt 0:01:16]} Qc7 {[%emt 0:02:09]} 31. Nc5 {[%emt 0:03:01]} Ba8 {[%emt 0:03:43]} 32. Qg3 {[%emt 0:02:42]} Nd5 {[%emt 0:04:53]} 33. Rxe6 {[%emt 0:01:21]} Qxf4 {[%emt 0:00:12]} 34. Ree1 {[%emt 0:02:45]} Qxg3+ {[%emt 0:01:30]} 35. fxg3 {[%emt 0:00:10]} Nc3 {[%emt 0:00:45]} 36. Bd3 {[%emt 0:01:10]} Bf3 {[%emt 0:01:02]} 37. g5 {[%emt 0:01:16]} hxg5 {[%emt 0:01:13]} 38. hxg5 {[%emt 0:00:03]} Bd5 {[%emt 0:00:11]} 39. Re5 {[%emt 0:01:38]} g6 {[%emt 0:00:59]} 40. Rf1 {[%emt 0:00:04]} Kg7 {[%emt 0:00:14]} 41. Re7 {[%emt 0:01:01]} Rh8 {[%emt 0:00:17]} 42. Rf4 {[%emt 0:06:12]} Rh1+ {[%emt 0:01:01]} 43. Kf2 {[%emt 0:00:07]} Rch8 {[%emt 0:00:43]} 44. Rxd4 {[%emt 0:00:49]} R8h2+ {[%emt 0:00:14]} 45. Ke3 {[%emt 0:00:36]} Re1+ {[%emt 0:00:22]} 46. Kf4 {[%emt 0:00:09]} Rf2+ {[%emt 0:00:19]} 47. Kg4 {[%emt 0:00:19]} Bf3+ {[%emt 0:00:09]} 0-1

[Event "Czech Open-E Teams 2022"]
[Site "Pardubice"]
[Date "2022.07.15"]
[Round "2.33"]
[White "Dolensky, Filip"]
[Black "Slovak, Kilian"]
[Result "0-1"]
[ECO "B30"]
[WhiteElo "2051"]
[BlackElo "2321"]
[Annotator "ChessBase"]
[PlyCount "54"]
[EventDate "2022.07.14"]
[EventType "team-tourn"]
[EventCountry "CZE"]
[SourceTitle "playchess.com"]
[Source "ChessBase"]
[SourceQuality "1"]
[TimeControl "5400+30"]

1. e4 {[%emt 0:00:02]} c5 {[%emt 0:06:48]} 2. Nf3 {[%emt 0:01:03]} Nc6 {[%emt 0:00:33]} 3. c3 {[%emt 0:00:31]} Nf6 {[%emt 0:00:24]} 4. e5 {[%emt 0:01:22]} Nd5 {[%emt 0:00:07]} 5. Bc4 {[%emt 0:01:34]} e6 {[%emt 0:00:49]} 6. d4 {[%emt 0:01:16]} cxd4 {[%emt 0:00:14]} 7. cxd4 {[%emt 0:00:08]} d6 {[%emt 0:00:22]} 8. O-O {[%emt 0:02:57]} Be7 {[%emt 0:00:19]} 9. Qe2 {[%emt 0:01:17]} O-O {[%emt 0:00:19]} 10. Bd2 {[%emt 0:04:31]} Qb6 {[%emt 0:07:59]} 11. Rd1 {[%emt 0:15:23]} dxe5 {[%emt 0:14:12]} 12. dxe5 {[%emt 0:03:17]} Qxb2 13. Bxd5 {[%emt 0:04:04]} exd5 {[%emt 0:01:15]} 14. Nc3 {[%emt 0:01:27]} Rd8 {[%emt 0:01:02]} 15. Rab1 {[%emt 0:06:27]} Qc2 {[%emt 0:02:37]} 16. Rbc1 {[%emt 0:03:27]} Qg6 {[%emt 0:00:56]} 17. Bf4 {[%emt 0:01:32]} Be6 {[%emt 0:10:17]} 18. Bg3 {[%emt 0:06:04]} Rac8 {[%emt 0:12:20]} 19. Qb5 {[%emt 0:04:31]} Ba3 20. Nh4 {[%emt 0:15:08]} Qg4 {[%emt 0:14:42]} 21. Rb1 {[%emt 0:04:56]} Qc4 {[%emt 0:04:17]} 22. Qxc4 {[%emt 0:02:42]} dxc4 {[%emt 0:00:03]} 23. Nb5 {[%emt 0:02:53]} Rxd1+ {[%emt 0:03:30]} 24. Rxd1 {[%emt 0:00:07]} Bb2 {[%emt 0:01:09]} 25. Nf3 {[%emt 0:04:52]} c3 {[%emt 0:00:47]} 26. Nfd4 {[%emt 0:03:45]} Nxd4 {[%emt 0:00:10]} 27. Nxd4 {[%emt 0:00:04]} Rd8 {[%emt 0:00:11]} 0-1

[Event "Czech Open-E Teams 2022"]
[Site "Pardubice"]
[Date "2022.07.15"]
[Round "2.34"]
[White "Brejnik, Gustav"]
[Black "Hurtik, Matej"]
[Result "1-0"]
[ECO "D11"]
[WhiteElo "2292"]
[BlackElo "2018"]
[Annotator "ChessBase"]
[PlyCount "93"]
[EventDate "2022.07.14"]
[EventType "team-tourn"]
[EventCountry "CZE"]
[SourceTitle "playchess.com"]
[Source "ChessBase"]
[SourceQuality "1"]
[TimeControl "5400+30"]

1. d4 {[%emt 0:00:02]} d5 {[%emt 0:01:25]} 2. c4 {[%emt 0:00:06]} c6 {[%emt 0:00:27]} 3. Nf3 {[%emt 0:01:29]} e6 {[%emt 0:00:40]} 4. e3 {[%emt 0:01:11]} f5 {[%emt 0:00:13]} 5. Be2 {[%emt 0:01:39]} Nf6 {[%emt 0:00:23]} 6. O-O {[%emt 0:00:07]} Bd6 {[%emt 0:00:13]} 7. b3 {[%emt 0:00:05]} Qe7 {[%emt 0:00:46]} 8. Bb2 {[%emt 0:00:05]} O-O {[%emt 0:00:23]} 9. Nbd2 {[%emt 0:01:01]} b6 {[%emt 0:08:30]} 10. Ne5 {[%emt 0:05:54]} Bb7 {[%emt 0:00:40]} 11. Qc2 {[%emt 0:17:39]} Nbd7 {[%emt 0:03:45]} 12. cxd5 {[%emt 0:04:18]} cxd5 {[%emt 0:01:33]} 13. Rac1 {[%emt 0:15:38]} Rfc8 {[%emt 0:03:54]} 14. Qb1 {[%emt 0:00:50]} Ne4 {[%emt 0:11:12]} 15. Ndf3 {[%emt 0:10:36]} Nxe5 {[%emt 0:22:59]} 16. dxe5 {[%emt 0:01:04]} Bb4 {[%emt 0:00:17]} 17. Qa1 {[%emt 0:04:21]} Ba3 {[%emt 0:11:09]} 18. Bxa3 {[%emt 0:04:36]} Qxa3 {[%emt 0:00:10]} 19. Nd4 {[%emt 0:00:05]} Qe7 {[%emt 0:00:47]} 20. Qb2 {[%emt 0:02:59]} a6 {[%emt 0:01:54]} 21. a3 {[%emt 0:01:10]} Nc5 {[%emt 0:06:25]} 22. a4 {[%emt 0:07:43]} Ne4 {[%emt 0:03:27]} 23. g3 {[%emt 0:02:52]} Nc5 {[%emt 0:05:11]} 24. Qa3 {[%emt 0:04:10]} Kf7 {[%emt 0:00:13]} 25. b4 {[%emt 0:03:51]} Ne4 {[%emt 0:01:50]} 26. Qb2 {[%emt 0:00:42]} h6 {[%emt 0:01:04]} 27. f3 {[%emt 0:02:04]} Ng5 {[%emt 0:00:06]} 28. h4 {[%emt 0:00:25]} Nh7 {[%emt 0:00:17]} 29. Kg2 {[%emt 0:02:18]} Qd7 {[%emt 0:03:04]} 30. b5 {[%emt 0:01:30]} a5 {[%emt 0:01:13]} 31. Nc6 {[%emt 0:00:16]} Nf8 {[%emt 0:01:52]} 32. Qd4 {[%emt 0:00:15]} Qc7 {[%emt 0:03:38]} 33. e4 dxe4 {[%emt 0:04:50]} 34. fxe4 {[%emt 0:00:05]} Nd7 {[%emt 0:01:25]} 35. Kh2 {[%emt 0:03:13]} Nc5 {[%emt 0:01:21]} 36. exf5 {[%emt 0:00:02]} Bxc6 {[%emt 0:00:29]} 37. bxc6 {[%emt 0:01:58]} Kg8 {[%emt 0:00:40]} 38. Bc4 {[%emt 0:01:11]} Rd8 {[%emt 0:00:21]} 39. Qf4 {[%emt 0:00:28]} Qxc6 {[%emt 0:00:30]} 40. Bxe6+ {[%emt 0:01:01]} Kh8 {[%emt 0:00:02]} 41. Bc4 {[%emt 0:00:50]} Ra7 {[%emt 0:01:10]} 42. f6 {[%emt 0:00:24]} g5 {[%emt 0:00:17]} 43. Qe3 {[%emt 0:00:29]} Rad7 {[%emt 0:00:36]} 44. Rf2 {[%emt 0:00:19]} Rd1 45. Rxd1 {[%emt 0:00:27]} Rxd1 {[%emt 0:00:40]} 46. Bf1 {[%emt 0:00:16]} Kg8 {[%emt 0:00:55]} 47. Bg2 {[%emt 0:00:10]} 1-0

[Event "Czech Open-E Teams 2022"]
[Site "Pardubice"]
[Date "2022.07.15"]
[Round "2.35"]
[White "Hofman, Krystof"]
[Black "Parizek, Vojtech"]
[Result "0-1"]
[ECO "A05"]
[WhiteElo "1972"]
[BlackElo "2217"]
[Annotator "ChessBase"]
[PlyCount "118"]
[EventDate "2022.07.14"]
[EventType "team-tourn"]
[EventCountry "CZE"]
[SourceTitle "playchess.com"]
[Source "ChessBase"]
[SourceQuality "1"]
[TimeControl "5400+30"]

1. Nf3 {[%emt 0:00:18]} Nf6 {[%emt 0:00:20]} 2. g3 {[%emt 0:00:26]} g6 {[%emt 0:00:09]} 3. Bg2 {[%emt 0:00:21]} Bg7 {[%emt 0:00:13]} 4. O-O {[%emt 0:00:15]} O-O {[%emt 0:00:32]} 5. d3 {[%emt 0:00:57]} d5 {[%emt 0:02:47]} 6. a3 {[%emt 0:02:05]} c5 {[%emt 0:03:07]} 7. Nc3 {[%emt 0:02:19]} Nc6 {[%emt 0:00:54]} 8. e4 {[%emt 0:07:18]} e6 {[%emt 0:02:35]} 9. Bg5 {[%emt 0:08:47]} h6 {[%emt 0:04:47]} 10. Bf4 {[%emt 0:02:30]} b6 {[%emt 0:03:15]} 11. Qc1 {[%emt 0:05:01]} Kh7 {[%emt 0:02:06]} 12. Re1 {[%emt 0:09:11]} Bb7 {[%emt 0:06:51]} 13. h4 {[%emt 0:13:35]} d4 {[%emt 0:26:59]} 14. Ne2 {[%emt 0:03:17]} Ng4 {[%emt 0:08:54]} 15. Bh3 {[%emt 0:06:02]} f5 {[%emt 0:01:03]} 16. Bxg4 {[%emt 0:03:54]} fxg4 {[%emt 0:00:34]} 17. Nh2 {[%emt 0:00:18]} e5 {[%emt 0:01:37]} 18. Bd2 {[%emt 0:01:00]} Qd7 {[%emt 0:00:31]} 19. Rf1 {[%emt 0:02:05]} Rf3 {[%emt 0:02:32]} 20. Kg2 {[%emt 0:01:05]} Raf8 {[%emt 0:01:33]} 21. Ng1 {[%emt 0:01:04]} R3f7 {[%emt 0:03:53]} 22. Qd1 {[%emt 0:01:04]} Bc8 {[%emt 0:00:50]} 23. Qe2 {[%emt 0:01:14]} Rf3 {[%emt 0:05:34]} 24. Qd1 {[%emt 0:00:53]} Ne7 {[%emt 0:02:09]} 25. Ngxf3 {[%emt 0:03:11]} gxf3+ {[%emt 0:00:15]} 26. Kh1 {[%emt 0:00:09]} Qd6 {[%emt 0:02:17]} 27. g4 {[%emt 0:05:49]} Qf6 {[%emt 0:04:10]} 28. Rg1 {[%emt 0:00:50]} Qxh4 {[%emt 0:00:58]} 29. Rg3 {[%emt 0:01:37]} h5 {[%emt 0:04:04]} 30. gxh5 {[%emt 0:08:17]} Qxh5 {[%emt 0:00:18]} 31. Kg1 {[%emt 0:00:16]} Ng8 {[%emt 0:04:02]} 32. Nxf3 {[%emt 0:00:58]} Kh8 {[%emt 0:02:51]} 33. Ng5 {[%emt 0:01:20]} Qh4 {[%emt 0:00:43]} 34. Kg2 {[%emt 0:00:53]} Nh6 {[%emt 0:01:54]} 35. Qh1 {[%emt 0:01:57]} Qxh1+ {[%emt 0:00:08]} 36. Rxh1 {[%emt 0:00:04]} Kg8 {[%emt 0:00:17]} 37. f3 {[%emt 0:03:49]} Rf6 {[%emt 0:01:20]} 38. Rh4 {[%emt 0:00:59]} Nf7 {[%emt 0:01:49]} 39. Nxf7 {[%emt 0:02:02]} Kxf7 {[%emt 0:00:09]} 40. Bg5 {[%emt 0:00:40]} Rc6 {[%emt 0:00:15]} 41. Rh1 {[%emt 0:02:10]} c4 {[%emt 0:00:16]} 42. Rd1 {[%emt 0:00:59]} cxd3 {[%emt 0:01:24]} 43. cxd3 {[%emt 0:00:05]} Ba6 {[%emt 0:00:21]} 44. Rd2 {[%emt 0:00:26]} Bf8 {[%emt 0:00:36]} 45. f4 {[%emt 0:00:34]} Bd6 {[%emt 0:00:14]} 46. Kf3 {[%emt 0:00:44]} Rc1 {[%emt 0:00:10]} 47. Rgg2 {[%emt 0:00:22]} Re1 {[%emt 0:00:11]} 48. fxe5 {[%emt 0:00:26]} Bxe5 {[%emt 0:00:06]} 49. Bf4 {[%emt 0:00:17]} Kf6 {[%emt 0:01:29]} 50. Kf2 {[%emt 0:00:58]} Rh1 {[%emt 0:00:53]} 51. Bxe5+ {[%emt 0:00:05]} Kxe5 {[%emt 0:00:03]} 52. Rxg6 {[%emt 0:00:11]} Rh2+ {[%emt 0:00:44]} 53. Ke1 {[%emt 0:00:10]} Rh3 {[%emt 0:00:04]} 54. Ke2 {[%emt 0:00:12]} Re3+ {[%emt 0:00:09]} 55. Kf2 {[%emt 0:01:03]} Bxd3 {[%emt 0:00:08]} 56. Rg7 {[%emt 0:01:09]} Kxe4 {[%emt 0:01:26]} 57. Re7+ {[%emt 0:00:22]} Kf4 {[%emt 0:00:06]} 58. Rf7+ {[%emt 0:00:08]} Ke4 {[%emt 0:00:04]} 59. Re7+ {[%emt 0:00:10]} Kf4 {[%emt 0:00:06]} 0-1

[Event "Czech Open-E Teams 2022"]
[Site "Pardubice"]
[Date "2022.07.15"]
[Round "2.36"]
[White "Formanek, Martin"]
[Black "Dolensky, Milan"]
[Result "1-0"]
[ECO "B28"]
[WhiteElo "2233"]
[BlackElo "2073"]
[Annotator "ChessBase"]
[PlyCount "93"]
[EventDate "2022.07.14"]
[EventType "team-tourn"]
[EventCountry "CZE"]
[SourceTitle "playchess.com"]
[Source "ChessBase"]
[SourceQuality "1"]
[TimeControl "5400+30"]

1. e4 {[%emt 0:00:06]} c5 {[%emt 0:00:08]} 2. Nf3 {[%emt 0:00:12]} a6 {[%emt 0:02:16]} 3. c4 {[%emt 0:00:11]} Nc6 {[%emt 0:00:27]} 4. g3 {[%emt 0:02:56]} g6 {[%emt 0:01:02]} 5. Nc3 {[%emt 0:01:18]} Bg7 {[%emt 0:00:44]} 6. Bg2 {[%emt 0:00:14]} d6 {[%emt 0:00:38]} 7. O-O {[%emt 0:01:28]} e5 {[%emt 0:04:15]} 8. a3 {[%emt 0:05:02]} Nge7 {[%emt 0:00:20]} 9. d3 {[%emt 0:16:22]} Rb8 {[%emt 0:01:19]} 10. Rb1 {[%emt 0:07:34]} b5 {[%emt 0:05:14]} 11. cxb5 {[%emt 0:00:20]} axb5 {[%emt 0:00:41]} 12. b4 {[%emt 0:00:06]} cxb4 {[%emt 0:01:44]} 13. axb4 {[%emt 0:00:24]} O-O {[%emt 0:01:28]} 14. Be3 {[%emt 0:01:19]} Bg4 {[%emt 0:15:59]} 15. Qb3 {[%emt 0:11:12]} Nd4 {[%emt 0:06:46]} 16. Bxd4 {[%emt 0:02:14]} exd4 {[%emt 0:03:36]} 17. Ne2 {[%emt 0:02:25]} Qb6 {[%emt 0:02:24]} 18. h3 {[%emt 0:02:52]} Be6 {[%emt 0:14:49]} 19. Qb2 {[%emt 0:00:12]} h6 {[%emt 0:00:43]} 20. Nf4 {[%emt 0:04:58]} Bd7 {[%emt 0:00:58]} 21. Rfe1 {[%emt 0:08:17]} Be5 {[%emt 0:02:03]} 22. Qd2 {[%emt 0:04:25]} Kh7 {[%emt 0:01:16]} 23. Nd5 {[%emt 0:02:50]} Nxd5 {[%emt 0:00:49]} 24. exd5 {[%emt 0:01:34]} Bf6 {[%emt 0:00:23]} 25. Qf4 {[%emt 0:02:22]} Bg7 {[%emt 0:04:53]} 26. h4 {[%emt 0:01:27]} Bf5 {[%emt 0:03:29]} 27. Rbd1 {[%emt 0:03:08]} Rbd8 {[%emt 0:01:13]} 28. g4 {[%emt 0:01:22]} Bc8 {[%emt 0:00:13]} 29. Re7 {[%emt 0:00:26]} Rd7 {[%emt 0:01:03]} 30. Rde1 {[%emt 0:02:48]} Be5 {[%emt 0:02:37]} 31. R7xe5 {[%emt 0:01:26]} dxe5 {[%emt 0:00:10]} 32. Rxe5 {[%emt 0:03:12]} Qd6 {[%emt 0:02:20]} 33. Qxd4 {[%emt 0:01:26]} Rc7 {[%emt 0:00:32]} 34. Re1 {[%emt 0:01:07]} Rc2 {[%emt 0:00:39]} 35. g5 {[%emt 0:03:33]} h5 {[%emt 0:00:26]} 36. Ne5 {[%emt 0:00:52]} Bf5 {[%emt 0:01:46]} 37. Ra1 {[%emt 0:01:17]} Rc7 {[%emt 0:00:30]} 38. f4 {[%emt 0:00:17]} Kg8 {[%emt 0:01:39]} 39. Kh2 {[%emt 0:01:15]} Rd8 {[%emt 0:00:35]} 40. Ra5 {[%emt 0:00:44]} Bd7 {[%emt 0:01:26]} 41. Kg3 {[%emt 0:00:52]} Bc6 {[%emt 0:00:47]} 42. Ra6 {[%emt 0:00:17]} Ra8 {[%emt 0:08:03]} 43. Rxc6 {[%emt 0:00:26]} Rxc6 {[%emt 0:00:26]} 44. Nxc6 {[%emt 0:00:11]} Ra3 {[%emt 0:02:03]} 45. Be4 {[%emt 0:01:40]} Qd7 {[%emt 0:00:45]} 46. Bf3 {[%emt 0:01:10]} Qf5 {[%emt 0:00:32]} 47. Ne7+ {[%emt 0:00:07]} 1-0

[Event "Czech Open-E Teams 2022"]
[Site "Pardubice"]
[Date "2022.07.15"]
[Round "2.37"]
[White "Neuman, Petr"]
[Black "Vanek, Ladislav"]
[Result "1-0"]
[ECO "A20"]
[WhiteElo "2378"]
[BlackElo "2199"]
[Annotator "ChessBase"]
[PlyCount "71"]
[EventDate "2022.07.14"]
[EventType "team-tourn"]
[EventCountry "CZE"]
[SourceTitle "playchess.com"]
[Source "ChessBase"]
[SourceQuality "1"]
[TimeControl "5400+30"]

1. c4 {[%emt 0:00:03]} e5 {[%emt 0:00:17]} 2. g3 {[%emt 0:00:07]} Nc6 {[%emt 0:00:21]} 3. Bg2 {[%emt 0:00:04]} Bc5 {[%emt 0:00:17]} 4. Nc3 {[%emt 0:00:12]} a6 {[%emt 0:00:16]} 5. e3 {[%emt 0:00:11]} d6 {[%emt 0:00:18]} 6. Nge2 {[%emt 0:00:06]} Ba7 {[%emt 0:00:27]} 7. a3 {[%emt 0:01:34]} h5 {[%emt 0:05:13]} 8. h3 {[%emt 0:00:42]} h4 {[%emt 0:03:06]} 9. g4 {[%emt 0:00:09]} f5 {[%emt 0:00:06]} 10. gxf5 {[%emt 0:01:17]} Bxf5 {[%emt 0:00:05]} 11. Ne4 {[%emt 0:01:17]} Nge7 {[%emt 0:08:20]} 12. N2c3 {[%emt 0:00:24]} Qd7 {[%emt 0:00:33]} 13. b4 {[%emt 0:06:12]} Qe6 {[%emt 0:01:08]} 14. d3 {[%emt 0:03:05]} Qg6 {[%emt 0:05:04]} 15. Bf3 {[%emt 0:01:41]} Be6 {[%emt 0:19:42]} 16. Ke2 {[%emt 0:04:42]} d5 {[%emt 0:02:57]} 17. cxd5 {[%emt 0:00:53]} Nxd5 {[%emt 0:00:06]} 18. Nxd5 {[%emt 0:01:53]} Bxd5 {[%emt 0:00:06]} 19. Qg1 {[%emt 0:02:19]} Qf7 {[%emt 0:05:20]} 20. Qg4 {[%emt 0:02:20]} Bd4 {[%emt 0:08:27]} 21. Rb1 {[%emt 0:07:17]} Ba2 {[%emt 0:09:03]} 22. Bd2 {[%emt 0:03:01]} Bxb1 {[%emt 0:00:51]} 23. Rxb1 {[%emt 0:00:06]} Bb6 {[%emt 0:22:36]} 24. Ng5 {[%emt 0:01:01]} Qf6 {[%emt 0:00:06]} 25. Rg1 {[%emt 0:00:59]} Rd8 {[%emt 0:02:09]} 26. Ne6 {[%emt 0:02:08]} Rd7 {[%emt 0:00:18]} 27. Be4 {[%emt 0:03:17]} g5 {[%emt 0:02:52]} 28. Bc3 {[%emt 0:02:23]} Rf7 {[%emt 0:03:25]} 29. Rg2 {[%emt 0:02:34]} Ke7 {[%emt 0:00:27]} 30. Nxg5 {[%emt 0:00:54]} Rg8 {[%emt 0:00:19]} 31. f4 {[%emt 0:00:59]} Nd4+ {[%emt 0:00:57]} 32. exd4 {[%emt 0:03:11]} exf4 {[%emt 0:00:20]} 33. d5 {[%emt 0:01:37]} f3+ {[%emt 0:00:31]} 34. Bxf3 {[%emt 0:00:15]} Qf5 {[%emt 0:00:50]} 35. Qe4+ {[%emt 0:01:13]} Kf8 {[%emt 0:00:31]} 36. Ne6+ {[%emt 0:00:28]} 1-0

[Event "Czech Open-E Teams 2022"]
[Site "Pardubice"]
[Date "2022.07.15"]
[Round "2.38"]
[White "Krmela, Ales"]
[Black "Wasserbauer, Radek"]
[Result "1/2-1/2"]
[ECO "B01"]
[WhiteElo "2065"]
[BlackElo "2164"]
[Annotator "ChessBase"]
[PlyCount "74"]
[EventDate "2022.07.14"]
[EventType "team-tourn"]
[EventCountry "CZE"]
[SourceTitle "playchess.com"]
[Source "ChessBase"]
[SourceQuality "1"]
[TimeControl "5400+30"]

1. e4 {[%emt 0:00:04]} d5 {[%emt 0:00:11]} 2. exd5 {[%emt 0:00:07]} Qxd5 {[%emt 0:00:05]} 3. Nc3 {[%emt 0:00:13]} Qa5 {[%emt 0:00:06]} 4. d4 {[%emt 0:02:55]} c6 {[%emt 0:00:05]} 5. Bd2 {[%emt 0:00:55]} Nf6 {[%emt 0:05:22]} 6. Nf3 {[%emt 0:02:26]} Bf5 {[%emt 0:02:59]} 7. Bc4 {[%emt 0:06:31]} e6 {[%emt 0:00:04]} 8. O-O {[%emt 0:00:38]} Nbd7 {[%emt 0:02:47]} 9. a3 {[%emt 0:03:34]} Qc7 {[%emt 0:01:50]} 10. h3 {[%emt 0:07:13]} Be7 {[%emt 0:00:07]} 11. Re1 {[%emt 0:02:24]} O-O {[%emt 0:01:53]} 12. Nh4 {[%emt 0:00:11]} Bg6 {[%emt 0:00:21]} 13. Nxg6 {[%emt 0:00:08]} hxg6 {[%emt 0:00:03]} 14. Qf3 {[%emt 0:02:21]} Rad8 {[%emt 0:07:07]} 15. Bb3 {[%emt 0:11:02]} Nb6 {[%emt 0:01:22]} 16. Bf4 {[%emt 0:02:10]} Qc8 {[%emt 0:08:17]} 17. Rad1 {[%emt 0:01:32]} Nbd5 {[%emt 0:00:53]} 18. Nxd5 {[%emt 0:07:53]} cxd5 {[%emt 0:01:44]} 19. Re3 {[%emt 0:04:03]} Qd7 {[%emt 0:02:43]} 20. Qe2 {[%emt 0:08:25]} b5 {[%emt 0:04:49]} 21. g4 {[%emt 0:03:41]} a6 {[%emt 0:04:13]} 22. Rc3 {[%emt 0:01:49]} Rc8 {[%emt 0:00:29]} 23. Rdd3 {[%emt 0:00:29]} Ne4 {[%emt 0:02:21]} 24. Rxc8 {[%emt 0:00:11]} Rxc8 {[%emt 0:00:05]} 25. f3 {[%emt 0:01:32]} Nd6 {[%emt 0:00:55]} 26. Rd2 {[%emt 0:09:15]} Nc4 {[%emt 0:03:21]} 27. Bxc4 {[%emt 0:00:06]} Rxc4 {[%emt 0:00:25]} 28. Qh2 {[%emt 0:03:13]} a5 {[%emt 0:14:13]} 29. h4 {[%emt 0:02:02]} b4 {[%emt 0:00:24]} 30. axb4 {[%emt 0:00:07]} axb4 {[%emt 0:00:04]} 31. Bg5 {[%emt 0:03:08]} Bd6 {[%emt 0:04:56]} 32. Qe2 {[%emt 0:02:12]} Qa7 {[%emt 0:06:30]} 33. Qd1 {[%emt 0:00:10]} Qc7 {[%emt 0:03:49]} 34. Be3 {[%emt 0:01:54]} Bf4 {[%emt 0:00:22]} 35. Bxf4 {[%emt 0:00:22]} Qxf4 {[%emt 0:00:04]} 36. Kg2 {[%emt 0:00:09]} Kh7 {[%emt 0:03:25]} 37. Rd3 {[%emt 0:00:54]} f5 {[%emt 0:00:40]} 1/2-1/2